bitfinex-derivatives/quotes_SOLF0:USTF0_20241211
["timestamp","ask_amount","ask_price","bid_price","bid_amount"]
[1733891630712,12.59131607,218.95,218.86,13.35927364]
[1733891630911,2.2829,218.96,218.86,13.35927364]
[1733891631103,12.58921085,218.95,218.86,13.35927364]
[1733891631306,12.58921085,218.94,218.86,13.35927364]
[1733891632605,12.58921085,218.94,218.89,2.2836]
[1733891633507,12.58921085,218.94,218.9,2.28]
[1733891637111,12.58921085,218.94,218.9,4.5635]
[1733891637312,2.2829,218.96,218.9,4.5635]
[1733891637503,12.63549583,218.95,218.9,4.5635]
[1733891637806,12.63549583,218.94,218.9,4.5635]
[1733891638006,2.2829,218.96,218.9,4.5635]
[1733891638206,12.6346802,218.95,218.9,4.5635]
[1733891638411,2.2829,218.96,218.9,4.5635]
[1733891638613,12.63718968,218.95,218.9,4.5635]
[1733891638809,2.2829,218.96,218.9,4.5635]
[1733891639010,12.63718318,218.95,218.9,2.28]
[1733891639309,2.2828,218.98,218.91,2.2834]
[1733891639512,12.64090739,218.97,218.91,2.2834]
[1733891639805,12.64090739,218.96,218.91,2.2834]
[1733891640012,2.2832,218.93,218.83,16.61303672]
[1733891640310,12.64090739,218.92,218.83,16.61303672]
[1733891640510,12.64090739,218.92,218.88,2.2836]
[1733891640711,12.64090739,218.92,218.89,2.28]
[1733891640913,11.07927364,218.98,218.89,2.28]
[1733891641210,12.64478376,218.97,218.89,2.28]
[1733891641410,12.64478376,218.96,218.89,2.28]
[1733891641613,11.07927364,219.02,218.89,2.28]
[1733891641614,12.64478376,218.95,218.89,2.28]
[1733891641811,2.8193,219.05,218.89,13.35927364]
[1733891642012,28.8084111,219.04,218.92,11.07927364]
[1733891642208,12.64468304,219.03,218.92,11.07927364]
[1733891642415,12.64468304,219.02,218.9,4.1109]
[1733891642617,2.2822,219.03,218.92,11.07927364]
[1733891642618,12.64468304,219.01,218.92,11.07927364]
[1733891642812,2.2822,219.03,218.92,11.07927364]
[1733891643008,12.6430208,219.02,218.96,2.2828]
[1733891643207,12.6430208,219.02,218.92,11.07927364]
[1733891643208,12.6430208,219.01,218.97,2.28]
[1733891643413,2.2822,219.03,218.97,4.5628]
[1733891643615,12.64202696,219.02,218.97,2.28]
[1733891643815,12.64216302,219.01,218.97,2.28]
[1733891644018,12.64216302,219.0,218.97,2.28]
[1733891644217,11.07927364,219.06,218.97,2.28]
[1733891644411,11.07927364,219.03,218.97,2.28]
[1733891644719,12.64346554,219.02,218.97,2.28]
[1733891645220,12.64346554,219.01,218.97,2.28]
[1733891645415,12.64346554,219.0,218.97,2.28]
[1733891645711,11.07927364,219.06,218.97,2.28]
[1733891645919,12.64301962,219.05,218.97,2.28]
[1733891646114,12.64301962,219.04,218.97,2.28]
[1733891646515,2.55359,219.08,219.01,2.2823]
[1733891646709,12.64118512,219.07,219.02,2.28]
[1733891646914,12.64118512,219.06,219.03,2.28]
[1733891647217,12.64118512,219.05,219.03,2.28]
[1733891647416,12.64118512,219.04,219.03,2.28]
[1733891647611,2.282,219.06,219.03,2.28]
[1733891647818,12.64118512,219.04,219.03,2.28]
[1733891648017,12.64118512,219.05,219.03,2.28]
[1733891648216,12.64118512,219.04,219.03,2.28]
[1733891649416,2.2821,219.05,219.03,2.28]
[1733891650517,0.27189,219.08,219.03,2.28]
[1733891650722,2.2819,219.06,219.03,2.28]
[1733891650919,12.63281059,219.05,219.03,2.28]
[1733891651220,14.91491059,219.04,219.03,2.28]
[1733891653824,12.63281059,219.04,219.03,2.28]
[1733891654024,11.07927364,219.09,219.03,2.28]
[1733891654224,12.62674565,219.08,219.03,2.28]
[1733891654528,12.62674565,219.07,219.03,2.28]
[1733891654722,12.62674565,219.06,219.03,2.28]
[1733891654920,2.2819,219.07,219.03,2.28]
[1733891655119,12.62375953,219.06,219.03,2.28]
[1733891655324,2.2819,219.07,219.03,2.28]
[1733891655536,12.6210074,219.06,219.03,2.28]
[1733891655720,11.07927364,219.09,219.03,2.28]
[1733891655927,12.62095834,219.08,219.04,2.2821]
[1733891656225,12.62095834,219.07,219.04,2.2821]
[1733891656424,12.62095834,219.06,219.04,2.2821]
[1733891656626,13.36087364,219.09,219.04,2.2821]
[1733891656931,12.61803108,219.08,219.05,2.2819]
[1733891657122,12.61803108,219.07,219.05,2.2819]
[1733891657319,2.2816,219.09,219.05,2.2819]
[1733891657622,12.61515475,219.08,219.05,2.2819]
[1733891657825,12.61515475,219.07,219.06,2.2819]
[1733891658027,2.2812,219.12,219.03,2.28]
[1733891658228,12.61492049,219.11,219.03,2.28]
[1733891658428,12.61492049,219.1,219.03,2.28]
[1733891658626,12.61492049,219.09,219.03,2.28]
[1733891658825,2.2814,219.11,219.03,2.28]
[1733891659124,12.61103531,219.1,219.03,2.28]
[1733891659329,2.2813,219.12,219.03,2.28]
[1733891659538,11.07927364,219.15,219.03,2.28]
[1733891659725,2.2811,219.13,219.07,2.2817]
[1733891659930,2.2811,219.13,218.99,13.91067364]
[1733891659931,12.60759376,219.12,219.08,2.28]
[1733891660229,11.07927364,219.15,219.08,2.28]
[1733891660230,2.2811,219.14,219.08,2.28]
[1733891661430,11.07927364,219.15,219.09,2.28]
[1733891661828,12.59612484,219.14,219.09,2.28]
[1733891662130,11.07927364,219.15,219.1,2.28]
[1733891662322,12.59507109,219.14,219.11,2.28]
[1733891662630,2.2813,219.12,219.11,2.28]
[1733891663331,2.2815,219.1,219.05,2.282]
[1733891663533,7.04248272,219.07,219.06,2.28]
[1733891664431,2.282,219.05,219.0,2.2825]
[1733891664629,1.4653,219.17,219.01,2.28]
[1733891664630,7.04248272,219.04,219.01,2.28]
[1733891666229,9.32458272,219.04,219.01,2.28]
[1733891666436,9.32458272,219.04,219.02,2.28]
[1733891668228,2.2822,219.03,218.98,3.6775]
[1733891668533,7.04248272,219.0,218.99,2.28]
[1733891669126,7.04248272,219.03,218.99,2.28]
[1733891670638,7.04248272,219.03,219.0,2.2825]
[1733891670836,7.04248272,219.03,218.99,2.28]
[1733891671635,7.04248272,219.03,218.99,4.5626]
[1733891674537,2.7702,219.11,218.99,2.28]
[1733891674538,7.04248272,219.01,218.99,2.28]
[1733891675838,2.2825,219.0,218.99,2.28]
[1733891676636,7.04248272,219.01,218.99,2.28]
[1733891676842,9.32488272,219.01,218.99,2.28]
[1733891677738,2.2828,218.97,218.87,1.3973]
[1733891677939,7.04248272,218.98,218.91,7.04248272]
[1733891678734,9.32518272,218.98,218.93,7.69275382]
[1733891679044,7.04248272,218.98,218.94,2.28]
[1733891679840,2.2829,218.97,218.94,2.28]
[1733891680743,7.04248272,218.98,218.94,2.28]
[1733891680936,9.32508272,219.0,218.94,4.563]
[1733891682239,7.04248272,219.0,218.94,2.28]
[1733891682440,2.2826,218.99,218.94,2.28]
[1733891682946,2.2826,218.99,218.94,4.5631]
[1733891684242,2.2828,218.97,218.94,2.28]
[1733891685443,9.32518272,218.98,218.94,2.28]
[1733891685646,7.04248272,218.98,218.94,2.28]
[1733891687349,7.04248272,218.98,218.92,5.60819958]
[1733891687550,7.04248272,218.98,218.93,2.28]
[1733891688346,7.04248272,218.98,218.87,1.3973]
[1733891688554,7.04248272,218.92,218.88,2.2837]
[1733891688752,7.04248272,218.92,218.88,2.28]
[1733891689752,7.04248272,218.9,218.86,2.28]
[1733891690050,7.04248272,218.88,218.86,2.28]
[1733891690251,7.04248272,218.9,218.86,4.5639]
[1733891692052,7.04248272,218.9,218.86,2.28]
[1733891692552,7.04248272,218.9,218.81,7.04248272]
[1733891692553,7.04248272,218.88,218.81,2.28]
[1733891692748,12.62131583,218.89,218.81,2.28]
[1733891692749,7.04248272,218.83,218.81,2.28]
[1733891692949,2.2845,218.81,218.79,2.28]
[1733891693146,7.04248272,218.81,218.79,2.28]
[1733891693552,2.2846,218.8,218.79,2.28]
[1733891694348,7.04248272,218.81,218.79,2.28]
[1733891695658,9.32698272,218.81,218.79,2.28]
[1733891696460,7.04248272,218.81,218.79,2.28]
[1733891696655,7.04248272,218.81,218.76,2.28]
[1733891696853,7.04248272,218.77,218.76,2.28]
[1733891697060,7.04248272,218.77,218.75,2.28]
[1733891698959,7.04248272,218.77,218.74,2.28]
[1733891699154,7.04248272,218.75,218.74,2.28]
[1733891700263,2.2852,218.74,218.67,2.2859]
[1733891700465,7.04248272,218.71,218.64,2.7954]
[1733891700955,7.04248272,218.71,218.65,2.28]
[1733891701554,7.04248272,218.69,218.65,2.28]
[1733891701758,2.28,218.82,218.66,2.28]
[1733891701759,7.04248272,218.67,218.66,2.28]
[1733891702663,7.04248272,218.67,218.64,2.28]
[1733891703060,7.04248272,218.67,218.62,5.42606737]
[1733891703256,7.04248272,218.65,218.63,2.28]
[1733891704561,4.4141,218.76,218.63,2.28]
[1733891704562,7.04248272,218.66,218.63,2.28]
[1733891705458,4.4141,218.76,218.65,7.04248272]
[1733891705459,6.6992,218.76,218.65,7.04248272]
[1733891705669,7.04248272,218.72,218.65,7.04248272]
[1733891706070,7.04248272,218.72,218.7,2.2856]
[1733891706268,7.04248272,218.72,218.7,4.5656]
[1733891706469,4.2542,218.81,218.7,2.28]
[1733891706663,7.04248272,218.74,218.7,2.28]
[1733891706867,7.04248272,218.76,218.7,2.28]
[1733891707171,11.03673439,218.8,218.7,2.28]
[1733891707766,13.71,218.98,218.7,2.28]
[1733891707970,11.03673439,218.83,218.71,2.6915]
[1733891708369,11.03673439,218.83,218.78,2.2848]
[1733891708573,11.03673439,218.83,218.79,2.28]
[1733891709576,11.03673439,218.83,218.79,4.5646]
[1733891710171,11.03673439,218.83,218.79,2.28]
[1733891710367,11.03673439,218.86,218.79,2.28]
[1733891711377,12.38793439,218.89,218.83,2.2842]
[1733891711570,11.03673439,218.89,218.83,2.2842]
[1733891711772,11.03673439,218.89,218.84,2.28]
[1733891712474,4.2963,218.96,218.84,2.28]
[1733891712670,11.03673439,218.92,218.84,2.28]
[1733891713679,11.03673439,218.92,218.86,2.2839]
[1733891714177,11.03673439,218.92,218.87,2.28]
[1733891715978,11.03673439,218.92,218.87,4.5638]
[1733891716173,11.03673439,218.92,218.87,2.28]
[1733891716682,2.28362639,218.95,218.87,2.28]
[1733891718079,11.03673439,218.96,218.92,2.2833]
[1733891718282,11.03673439,218.96,218.93,2.28]
[1733891718579,11.03673439,218.96,218.93,4.5632]
[1733891719284,0.22702,218.97,218.94,2.2831]
[1733891721078,0.22702,218.97,218.91,2.2834]
[1733891721285,11.03673439,218.96,218.92,2.28]
[1733891721580,2.2832,218.94,218.92,2.28]
[1733891721778,11.03673439,218.96,218.9,2.28]
[1733891722380,2.2832,218.94,218.9,2.28]
[1733891722879,2.283,218.95,218.9,2.28]
[1733891723182,11.03673439,218.96,218.9,2.28]
[1733891723388,11.03673439,218.96,218.91,2.2834]
[1733891724078,11.03673439,218.96,218.9,2.28]
[1733891724280,11.03673439,218.96,218.92,2.2833]
[1733891724486,0.22702,218.97,218.9,2.28]
[1733891724877,0.22702,218.97,218.94,2.2831]
[1733891725082,0.22702,218.97,218.95,2.28]
[1733891725284,0.22702,218.97,218.96,2.28]
[1733891725686,0.22702,218.97,218.96,4.5629]
[1733891727292,0.22702,218.97,218.96,2.28]
[1733891727489,0.22702,218.97,218.9,1.3725]
[1733891727696,0.22702,218.97,218.91,2.28]
[1733891728390,11.03673439,218.99,218.91,2.28]
[1733891728590,13.31933439,218.99,218.92,2.2833]
[1733891729291,11.03673439,218.99,218.88,5.59394609]
[1733891729494,11.03673439,218.99,218.92,2.28]
[1733891729690,2.2828,218.97,218.92,2.28]
[1733891729894,11.03673439,218.99,218.92,2.28]
[1733891730396,2.283,218.96,218.92,2.28]
[1733891730598,11.03673439,218.99,218.92,4.5633]
[1733891731696,13.31963439,218.96,218.92,2.28]
[1733891732196,2.2829,218.96,218.92,2.28]
[1733891732394,13.31923439,219.0,218.92,2.28]
[1733891733491,11.03673439,219.0,218.92,2.28]
[1733891733701,11.03673439,219.0,218.95,2.283]
[1733891733999,11.03673439,219.0,218.92,2.28]
[1733891734200,13.31923439,219.0,218.94,2.2831]
[1733891735605,11.03673439,219.03,218.92,2.28]
[1733891735794,11.03673439,219.06,218.92,6.5046]
[1733891736003,2.2821,219.04,218.96,2.2829]
[1733891736300,2.2821,219.04,218.97,2.28]
[1733891736496,2.2821,219.04,218.98,2.28]
[1733891737400,2.2821,219.04,218.98,4.5627]
[1733891737896,11.03673439,219.06,218.98,2.28]
[1733891740404,0.28164,219.08,218.98,2.28]
[1733891741107,2.2821,219.04,218.99,5.34555462]
[1733891741309,0.28164,219.08,218.99,5.34555462]
[1733891742411,2.2821,219.05,218.99,7.62805462]
[1733891742605,0.28164,219.08,218.99,5.34555462]
[1733891742806,2.2818,219.07,219.01,2.2823]
[1733891743003,0.28164,219.08,218.99,5.34555462]
[1733891743406,2.282,219.05,218.99,7.62815462]
[1733891744713,0.28164,219.08,218.99,7.62815462]
[1733891744714,2.2821,219.04,218.99,7.62815462]
[1733891745708,2.2822,219.03,218.98,2.28]
[1733891745913,11.03673439,219.06,218.99,2.28]
[1733891746313,2.2822,219.03,218.99,2.28]
[1733891747205,2.2821,219.04,218.99,4.5626]
[1733891747410,5.58856548,219.13,218.99,2.28]
[1733891747707,2.2817,219.08,219.03,2.2821]
[1733891747902,11.03673439,219.09,218.92,4.2246]
[1733891748104,11.03673439,219.06,218.93,2.28]
[1733891748709,11.03673439,219.06,218.92,4.2246]
[1733891748918,11.03673439,219.03,218.92,4.2246]
[1733891749112,11.03673439,219.03,218.93,2.28]
[1733891749312,11.03673439,219.03,218.94,4.5631]
[1733891749913,2.2826,219.0,218.95,2.283]
[1733891750914,2.2826,218.99,218.95,2.283]
[1733891752516,11.03673439,219.0,218.83,1.3727]
[1733891752723,2.2837,218.89,218.83,2.2842]
[1733891752913,11.03673439,218.91,218.81,2.28]
[1733891753417,2.2837,218.88,218.82,2.2844]
[1733891754317,2.2837,218.88,218.81,4.5644]
[1733891754817,2.2837,218.88,218.83,5.4944883]
[1733891755718,11.03673439,218.91,218.83,5.4944883]
[1733891756509,2.2836,218.9,218.83,5.4944883]
[1733891757019,2.2838,218.88,218.83,5.4944883]
[1733891757718,2.2836,218.89,218.83,5.4944883]
[1733891760426,11.03673439,218.91,218.83,5.4944883]
[1733891760622,11.03673439,218.94,218.83,5.4944883]
[1733891761220,11.03673439,218.97,218.83,16.53122269]
[1733891761919,11.03673439,218.97,218.91,2.2834]
[1733891762125,11.03673439,218.97,218.92,2.28]
[1733891762520,13.31953439,218.97,218.92,2.28]
[1733891763626,2.2829,218.96,218.92,2.28]
[1733891763819,2.2829,218.96,218.9,2.2835]
[1733891764124,2.2829,218.96,218.83,16.53122269]
[1733891764125,11.03673439,218.97,218.91,2.28]
[1733891764428,11.03673439,218.97,218.9,2.28]
[1733891764628,2.283,218.95,218.9,2.28]
[1733891764827,11.03673439,218.97,218.9,2.28]
[1733891765127,12.60837588,218.96,218.9,2.28]
[1733891765327,11.03673439,218.97,218.9,2.28]
[1733891765528,2.2832,218.94,218.9,2.28]
[1733891765822,11.03673439,218.97,218.9,2.28]
[1733891766029,11.03673439,219.0,218.9,2.28]
[1733891766628,2.2827,218.98,218.92,2.2833]
[1733891767225,2.2826,218.99,218.93,2.2832]
[1733891767719,11.03673439,219.0,218.95,2.283]
[1733891767919,11.03673439,219.0,218.95,4.563]
[1733891768430,13.31923439,219.0,218.95,4.563]
[1733891768924,11.03673439,219.0,218.95,2.28]
[1733891769129,2.2826,218.99,218.95,2.28]
[1733891771920,11.03673439,219.0,218.95,2.28]
[1733891772134,13.31923439,219.0,218.95,4.563]
[1733891772529,11.03673439,219.0,218.95,2.28]
[1733891773731,2.2826,218.99,218.95,2.28]
[1733891774527,11.03673439,219.0,218.96,2.2829]
[1733891774729,4.2435,219.02,218.95,2.28]
[1733891775130,11.03673439,219.03,218.99,2.2826]
[1733891775534,11.03673439,219.03,218.95,2.28]
[1733891775734,13.31893439,219.03,218.98,2.2826]
[1733891776533,11.03673439,219.03,218.95,2.28]
[1733891776740,11.03673439,219.03,218.99,2.2826]
[1733891776932,11.03673439,219.03,219.0,2.28]
[1733891777131,11.03673439,219.03,219.0,4.5624]
[1733891777334,13.31873439,219.06,219.0,2.28]
[1733891777636,11.03673439,219.06,219.0,2.28]
[1733891778639,11.03673439,219.06,219.02,2.2822]
[1733891781435,13.31863439,219.06,219.01,2.2824]
[1733891782141,2.2821,219.04,219.0,2.28]
[1733891782638,2.2822,219.03,219.0,2.28]
[1733891783537,11.03673439,219.06,219.0,2.28]
[1733891783744,12.60281282,219.05,219.0,2.28]
[1733891784046,2.2823,219.02,219.0,2.28]
[1733891784442,11.03673439,219.03,218.98,2.28]
[1733891784643,2.2825,219.01,218.98,2.28]
[1733891785141,11.03673439,219.03,218.98,2.28]
[1733891785340,11.03673439,219.0,218.93,2.2831]
[1733891785544,11.03673439,219.0,218.94,2.28]
[1733891785743,2.2829,218.96,218.94,2.28]
[1733891786740,2.2829,218.96,218.92,2.28]
[1733891786942,11.03673439,218.97,218.92,2.28]
[1733891787141,2.2831,218.94,218.92,2.28]
[1733891787338,11.03673439,218.97,218.92,2.28]
[1733891787538,12.6118686,218.96,218.92,2.28]
[1733891787738,12.6118686,218.95,218.92,2.28]
[1733891787935,11.03673439,218.97,218.92,2.28]
[1733891788134,2.2832,218.94,218.88,2.2837]
[1733891788341,2.2832,218.94,218.89,4.5636]
[1733891789337,11.03673439,218.94,218.89,2.28]
[1733891790041,12.61531491,218.93,218.89,2.28]
[1733891790248,11.03673439,218.94,218.89,2.28]
[1733891790443,11.03673439,218.94,218.79,1.4029]
[1733891790444,12.61570143,218.93,218.84,52.96940662]
[1733891790749,11.03673439,218.94,218.85,2.28]
[1733891791041,12.61616547,218.93,218.85,2.28]
[1733891791445,2.2836,218.9,218.85,2.28]
[1733891792640,2.2836,218.9,218.85,4.564]
[1733891794138,2.2836,218.9,218.83,5.35578742]
[1733891794340,11.03673439,218.94,218.84,4.5641]
[1733891794341,2.2834,218.91,218.84,4.5641]
[1733891794540,11.03673439,218.94,218.84,4.5641]
[1733891794848,12.61240306,218.93,218.84,4.5641]
[1733891795044,12.61240306,218.92,218.84,4.5641]
[1733891795346,11.03673439,218.94,218.84,2.28]
[1733891795347,2.2836,218.9,218.84,2.28]
[1733891796748,2.2836,218.9,218.85,2.284]
[1733891797139,7.05425955,218.93,218.85,7.05425955]
[1733891798445,9.33745955,218.93,218.88,2.2837]
[1733891798646,9.33745955,218.93,218.89,2.28]
[1733891798948,7.05425955,218.91,218.82,5.35580009]
[1733891799143,5.60420568,218.97,218.83,4.5642]
[1733891799144,7.05425955,218.89,218.83,4.5642]
[1733891800046,7.05425955,218.87,218.83,2.28]
[1733891801144,2.2838,218.87,218.83,2.28]
[1733891803449,2.2842,218.84,218.73,11.02844728]
[1733891803648,11.02844728,218.87,218.73,11.02844728]
[1733891803847,19.31420568,218.97,218.72,4.2581]
[1733891803848,11.02844728,218.84,218.72,4.2581]
[1733891804048,11.02844728,218.84,218.74,2.28]
[1733891804449,2.2844,218.82,218.77,2.2849]
[1733891805350,11.02844728,218.84,218.77,2.2849]
[1733891805553,2.2843,218.83,218.78,2.28]
[1733891807153,2.2843,218.83,218.78,4.5648]
[1733891808151,2.2844,218.82,218.78,2.28]
[1733891808450,11.02844728,218.84,218.78,2.28]
[1733891808660,11.02844728,218.81,218.71,47.5]
[1733891808953,2.2848,218.78,218.73,2.2853]
[1733891809151,2.2848,218.78,218.72,2.28]
[1733891809152,11.02844728,218.81,218.72,2.28]
[1733891809848,11.02844728,218.81,218.77,2.2849]
[1733891810047,11.02844728,218.84,218.77,2.28]
[1733891811658,2.2843,218.83,218.78,2.2848]
[1733891815556,4.2078,218.88,218.81,2.2845]
[1733891815557,2.284,218.86,218.81,2.2845]
[1733891815860,2.284,218.86,218.82,2.28]
[1733891818058,2.284,218.86,218.82,4.5643]
[1733891819860,2.2841,218.85,218.82,2.28]
[1733891820056,11.02844728,218.87,218.82,2.28]
[1733891820464,11.02844728,218.84,218.78,2.28]
[1733891821164,7.06371447,218.79,218.76,2.28]
[1733891821365,4.2078,218.88,218.76,2.28]
[1733891821670,4.2078,218.88,218.83,2.2842]
[1733891821855,7.06371447,218.84,218.83,2.2842]
[1733891822362,7.06371447,218.84,218.82,2.2844]
[1733891823161,15.23813567,218.88,218.82,2.2844]
[1733891823461,15.23813567,218.88,218.81,2.28]
[1733891823462,11.03033567,218.88,218.81,2.28]
[1733891823763,11.03033567,218.92,218.81,2.28]
[1733891823957,4.56754367,218.91,218.81,2.28]
[1733891824159,2.28414801,218.9,218.81,2.28]
[1733891824460,2.28414801,218.9,218.82,2.28]
[1733891824461,13.31403567,218.89,218.82,2.28]
[1733891824762,11.03033567,218.89,218.82,2.28]
[1733891824961,11.03033567,218.89,218.82,4.5643]
[1733891825559,11.03033567,218.89,218.83,2.2842]
[1733891826162,2.2838,218.88,218.83,2.2842]
[1733891826567,11.03033567,218.89,218.84,2.2841]
[1733891827072,11.03033567,218.89,218.82,2.28]
[1733891827264,12.61735716,218.88,218.82,2.28]
[1733891827465,11.03033567,218.89,218.82,2.28]
[1733891827666,2.284,218.86,218.82,2.28]
[1733891828366,2.284,218.86,218.82,4.5644]
[1733891828663,11.03033567,218.86,218.82,2.28]
[1733891829170,2.2843,218.83,218.82,2.28]
[1733891829365,11.03033567,218.86,218.72,15.31833567]
[1733891829568,11.03033567,218.83,218.72,4.288]
[1733891829766,11.03033567,218.83,218.73,2.28]
[1733891829969,12.63637213,218.82,218.74,2.2851]
[1733891830166,12.64617933,218.81,218.74,2.2851]
[1733891830367,12.64617933,218.8,218.74,2.2851]
[1733891830567,2.2847,218.8,218.73,2.28]
[1733891830766,2.2847,218.8,218.75,2.285]
[1733891831467,13.31473567,218.83,218.77,2.2849]
[1733891831669,12.6452965,218.82,218.77,2.2849]
[1733891831869,12.6452965,218.81,218.77,2.2849]
[1733891832171,11.03033567,218.83,218.77,2.2849]
[1733891832468,12.64774932,218.82,218.77,2.2849]
[1733891832770,14.93224932,218.81,218.77,2.2849]
[1733891832970,11.03033567,218.83,218.73,2.28]
[1733891833172,11.03033567,218.8,218.73,2.28]
[1733891833371,12.64814975,218.79,218.67,1.338]
[1733891833569,11.03033567,218.77,218.68,5.35269096]
[1733891833772,12.64977658,218.76,218.69,2.28]
[1733891833971,12.64977658,218.75,218.69,2.28]
[1733891834271,12.64977658,218.75,218.7,2.2856]
[1733891834272,2.2851,218.75,218.7,2.2856]
[1733891834472,11.03033567,218.77,218.7,2.2856]
[1733891834667,11.03033567,218.77,218.69,4.5657]
[1733891834668,2.2852,218.74,218.69,4.5657]
[1733891834864,11.03033567,218.77,218.69,2.28]
[1733891835070,12.64818321,218.76,218.69,2.28]
[1733891835265,12.64818321,218.75,218.69,2.28]
[1733891835465,11.03033567,218.77,218.69,2.28]
[1733891835764,2.2852,218.74,218.69,4.5657]
[1733891835964,11.03033567,218.74,218.63,2.8762]
[1733891836166,11.03033567,218.74,218.64,2.28]
[1733891836375,2.2854,218.72,218.67,2.2859]
[1733891836868,2.2854,218.72,218.67,4.5659]
[1733891837263,2.2853,218.73,218.67,4.5659]
[1733891837463,11.03033567,218.74,218.64,5.59184465]
[1733891837764,11.03033567,218.74,218.65,2.28]
[1733891838068,11.03033567,218.74,218.68,2.2857]
[1733891838069,13.31563567,218.74,218.68,2.2857]
[1733891838268,13.31563567,218.74,218.65,2.28]
[1733891838464,11.03033567,218.77,218.65,2.28]
[1733891839067,11.03033567,218.77,218.68,2.2858]
[1733891839265,11.03033567,218.77,218.65,2.28]
[1733891839468,2.2853,218.74,218.65,2.28]
[1733891839876,11.03033567,218.77,218.65,2.28]
[1733891840071,12.62165473,218.76,218.65,2.28]
[1733891840271,11.03033567,218.77,218.65,2.28]
[1733891841776,2.2852,218.74,218.68,2.2858]
[1733891842070,11.03033567,218.77,218.68,2.2858]
[1733891842375,2.2853,218.73,218.68,2.2858]
[1733891843176,7.06792185,218.71,218.68,2.2858]
[1733891843675,7.06792185,218.71,218.66,2.2859]
[1733891843867,7.06792185,218.69,218.66,2.28]
[1733891844068,7.06792185,218.69,218.63,1.4086]
[1733891844273,7.06792185,218.67,218.64,2.28]
[1733891846671,7.06792185,218.65,218.61,2.28]
[1733891847074,7.06792185,218.63,218.56,2.759]
[1733891847280,7.06792185,218.63,218.59,2.2867]
[1733891847775,7.06792185,218.61,218.57,2.28]
[1733891847978,13.71,218.75,218.55,2.28]
[1733891847979,7.06792185,218.57,218.55,2.28]
[1733891848169,7.06792185,218.57,218.51,2.2876]
[1733891848478,7.06792185,218.55,218.52,2.28]
[1733891848869,3.72,218.64,218.52,2.28]
[1733891849173,11.05966147,218.58,218.52,2.28]
[1733891850677,2.287,218.57,218.52,2.28]
[1733891852072,11.05966147,218.61,218.52,2.28]
[1733891852377,12.49966147,218.64,218.52,2.28]
[1733891852576,1.3922,218.66,218.53,13.87186147]
[1733891852978,11.05966147,218.67,218.53,13.87186147]
[1733891853179,11.05966147,218.67,218.61,2.2865]
[1733891853386,11.05966147,218.67,218.62,2.28]
[1733891853975,13.34566147,218.67,218.62,2.28]
[1733891854173,11.05966147,218.67,218.53,13.87186147]
[1733891854371,11.05966147,218.67,218.54,2.28]
[1733891854573,2.2861,218.65,218.54,2.28]
[1733891854775,11.05966147,218.67,218.58,2.2868]
[1733891855074,11.05966147,218.67,218.59,2.28]
[1733891856473,2.286,218.66,218.6,2.2866]
[1733891857382,13.34536147,218.7,218.59,2.28]
[1733891859282,13.34536147,218.7,218.63,2.2862]
[1733891859478,13.34536147,218.7,218.64,2.28]
[1733891859777,2.2857,218.69,218.64,4.5662]
[1733891860283,11.05966147,218.7,218.66,2.2859]
[1733891860480,11.05966147,218.73,218.64,2.28]
[1733891862080,2.2854,218.72,218.67,2.2858]
[1733891862974,11.05966147,218.73,218.64,2.28]
[1733891863184,11.05966147,218.73,218.68,2.2858]
[1733891863885,11.05966147,218.73,218.7,2.2856]
[1733891864085,11.05966147,218.76,218.7,2.2856]
[1733891864381,11.05966147,218.76,218.71,2.2854]